bitfinex-derivatives/quotes_BTCF0:USTF0_20241008
["timestamp","ask_amount","ask_price","bid_price","bid_amount"]
[1728384951795,0.08194,62562.0,62561.0,0.081941]
[1728384960189,0.08194,62562.0,62561.0,0.14587567]
[1728384961288,0.08194,62562.0,62561.0,0.081941]
[1728384962400,0.08194,62562.0,62561.0,0.14587567]
[1728384962606,0.08194,62562.0,62561.0,0.081941]
[1728384964508,0.08194,62562.0,62561.0,0.14587567]
[1728384965901,0.08194,62562.0,62561.0,0.201941]
[1728384966498,0.3608,62571.0,62561.0,0.56265128]
[1728384966710,0.440729,62571.0,62570.0,0.19993]
[1728384967591,0.3608,62577.0,62570.0,0.19993]
[1728384967795,0.3608,62577.0,62576.0,0.199922]
[1728384967796,0.440721,62577.0,62576.0,0.199922]
[1728384969293,0.449721,62577.0,62576.0,0.199922]
[1728384970106,0.457721,62577.0,62576.0,0.199922]
[1728384970697,0.457721,62577.0,62576.0,0.079922]
[1728384972097,0.096921,62577.0,62576.0,0.079922]
[1728384995118,0.457721,62577.0,62576.0,0.079922]
[1728385002132,0.3778,62577.0,62576.0,0.079922]
[1728385002824,0.3778,62577.0,62576.0,0.112922]
[1728385003028,0.017,62577.0,62576.0,0.112922]
[1728385003435,0.096921,62577.0,62576.0,0.112922]
[1728385004132,0.017,62577.0,62576.0,0.112922]
[1728385004338,0.096921,62577.0,62576.0,0.112922]
[1728385009336,0.017,62577.0,62576.0,0.112922]
[1728385010539,0.096921,62577.0,62576.0,0.112922]
[1728385011635,0.216921,62577.0,62576.0,0.112922]
[1728385013145,0.096921,62577.0,62576.0,0.112922]
[1728385013746,0.216921,62577.0,62576.0,0.112922]
[1728385020246,0.079925,62575.0,62574.0,0.079925]
[1728385020543,0.199925,62575.0,62574.0,0.079925]
[1728385021041,0.199925,62575.0,62569.0,0.3608]
[1728385021042,0.07993,62572.0,62571.0,0.079928]
[1728385021247,0.19993,62572.0,62571.0,0.079928]
[1728385022041,0.19993,62572.0,62569.0,0.38941463]
[1728385022244,0.19993,62572.0,62566.0,0.0323]
[1728385022245,0.079934,62567.0,62566.0,0.0323]
[1728385022556,0.079938,62565.0,62564.0,0.079937]
[1728385024547,0.080938,62565.0,62564.0,0.081937]
[1728385025750,0.081938,62565.0,62564.0,0.081937]
[1728385029245,0.081938,62565.0,62564.0,0.201937]
[1728385031654,0.081938,62565.0,62564.0,0.081937]
[1728385034557,0.081938,62565.0,62564.0,0.201937]
[1728385034945,0.081938,62565.0,62564.0,0.081937]
[1728385043465,0.002,62565.0,62564.0,0.201937]
[1728385056776,0.002,62565.0,62564.0,0.32377987]
[1728385057072,0.002,62565.0,62564.0,0.201937]
[1728385057868,0.079927,62573.0,62564.0,0.201937]
[1728385057869,0.079924,62575.0,62574.0,0.079921]
[1728385058073,0.079924,62575.0,62574.0,0.199921]
[1728385058464,0.079924,62575.0,62574.0,0.079921]
[1728385058975,0.199924,62575.0,62574.0,0.079921]
[1728385059473,0.206924,62575.0,62574.0,0.079921]
[1728385060879,0.212924,62575.0,62574.0,0.079921]
[1728385061477,0.207924,62575.0,62574.0,0.080921]
[1728385061676,0.212924,62575.0,62574.0,0.080921]
[1728385062071,0.211924,62575.0,62574.0,0.080921]
[1728385062476,0.091924,62575.0,62574.0,0.080921]
[1728385062684,0.211924,62575.0,62574.0,0.080921]
[1728385063668,0.211924,62575.0,62574.0,0.11012943]
[1728385063869,0.012,62575.0,62574.0,0.11012943]
[1728385064077,0.091924,62575.0,62574.0,0.11012943]
[1728385076088,0.12026546,62575.0,62574.0,0.11012943]
[1728385076285,0.12026546,62575.0,62574.0,0.001]
[1728385076592,0.079938,62566.0,62565.0,0.079933]
[1728385077685,0.080938,62566.0,62565.0,0.093933]
[1728385078189,0.080938,62566.0,62565.0,0.105933]
[1728385078387,0.081938,62566.0,62565.0,0.105933]
[1728385080285,0.201938,62566.0,62565.0,0.105933]
[1728385081383,0.081938,62566.0,62565.0,0.105933]
[1728385087297,0.081938,62566.0,62565.0,0.225933]
[1728385088592,0.002,62566.0,62565.0,0.586733]
[1728385102306,0.002,62566.0,62565.0,0.225933]
[1728385102613,0.002,62566.0,62565.0,0.586733]
[1728385105309,0.081935,62566.0,62565.0,0.586733]
[1728385106110,0.201935,62566.0,62565.0,0.026]
[1728385106505,0.233835,62566.0,62565.0,0.026]
[1728385111115,0.2627472,62566.0,62565.0,0.026]
[1728385112019,0.233835,62566.0,62565.0,0.026]
[1728385112715,0.233835,62566.0,62565.0,0.105936]
[1728385114222,0.594635,62566.0,62565.0,0.105936]
[1728385117220,0.233835,62566.0,62565.0,0.105936]
[1728385117416,0.594635,62566.0,62565.0,0.105936]
[1728385118210,0.594635,62566.0,62565.0,0.026]
[1728385124224,0.594635,62566.0,62557.0,0.079946]
[1728385124225,0.079947,62558.0,62557.0,0.079946]
[1728385124422,0.199947,62558.0,62557.0,0.079946]
[1728385124621,0.199947,62558.0,62554.0,0.07995]
[1728385124622,0.07995,62555.0,62554.0,0.07995]
[1728385124925,0.19995,62555.0,62554.0,0.07995]
[1728385127025,0.20095,62555.0,62554.0,0.08295]
[1728385127425,0.20195,62555.0,62554.0,0.08295]
[1728385133025,0.08195,62555.0,62554.0,0.20295]
[1728385133827,0.002,62555.0,62554.0,0.20295]
[1728385134030,0.002,62555.0,62554.0,0.56375]
[1728385139347,0.002,62555.0,62554.0,0.76544867]
[1728385140033,0.002,62555.0,62554.0,0.64544867]
[1728385140348,0.002,62555.0,62554.0,0.76544867]
[1728385141635,0.002,62555.0,62554.0,0.64359241]
[1728385141945,0.002,62555.0,62554.0,0.56375]
[1728385144343,0.002,62555.0,62554.0,0.64359241]
[1728385144546,0.002,62555.0,62554.0,0.56375]
[1728385146844,0.002,62555.0,62554.0,0.20295]
[1728385147050,0.002,62555.0,62554.0,0.56375]
[1728385147741,0.002,62555.0,62554.0,0.20295]
[1728385147945,0.002,62555.0,62554.0,0.56375]
[1728385154443,0.079938,62564.0,62563.0,0.079939]
[1728385154843,0.44073,62571.0,62570.0,0.07993]
[1728385155048,0.44073,62571.0,62570.0,0.24785453]
[1728385156049,0.44073,62571.0,62570.0,0.12785453]
[1728385156250,0.44173,62571.0,62570.0,0.12785453]
[1728385156553,0.44173,62571.0,62570.0,0.07993]
[1728385157745,0.44273,62571.0,62570.0,0.08493]
[1728385159450,0.08193,62571.0,62570.0,0.08493]
[1728385159753,0.08193,62571.0,62570.0,0.11421736]
[1728385161844,0.20193,62571.0,62570.0,0.11421736]
[1728385167046,0.08193,62571.0,62570.0,0.11421736]
[1728385169752,0.08193,62571.0,62570.0,0.08493]
[1728385179468,0.44273,62571.0,62570.0,0.08493]
[1728385186670,0.08193,62571.0,62570.0,0.08493]
[1728385200382,0.08193,62571.0,62570.0,0.005]
[1728385200592,0.079945,62559.0,62558.0,0.079941]
[1728385200883,0.199945,62559.0,62556.0,0.0659]
[1728385201084,0.079947,62557.0,62556.0,0.112648]
[1728385201587,0.079947,62557.0,62556.0,0.26167956]
[1728385201781,0.079947,62557.0,62556.0,0.14167956]
[1728385202892,0.080947,62557.0,62556.0,0.14267956]
[1728385203699,0.081947,62557.0,62556.0,0.14267956]
[1728385204790,0.081947,62557.0,62556.0,0.06273156]
[1728385205300,0.081947,62557.0,62556.0,0.03003156]
[1728385206896,0.079947,62557.0,62556.0,0.02903156]
[1728385207081,0.081947,62557.0,62556.0,0.001]
[1728385209590,0.081947,62557.0,62556.0,0.06501031]
[1728385209796,0.081947,62557.0,62556.0,0.001]
[1728385210696,0.080947,62557.0,62556.0,0.001]
[1728385210891,0.080947,62557.0,62548.0,0.04792991]
[1728385210892,0.602,62557.0,62548.0,0.04792991]
[1728385211091,0.079959,62547.0,62546.0,0.04792991]
[1728385211294,0.079962,62545.0,62544.0,0.12786091]
[1728385211495,0.199962,62545.0,62544.0,0.079963]
[1728385213288,0.200962,62545.0,62544.0,0.079963]
[1728385213888,0.201962,62545.0,62544.0,0.079963]
[1728385216598,0.079966,62542.0,62541.0,0.1417015]
[1728385216794,0.199966,62542.0,62541.0,0.0617365]
[1728385216994,0.199966,62542.0,62535.0,0.3608]
[1728385217298,0.199973,62536.0,62535.0,0.440775]
[1728385218703,0.199973,62536.0,62535.0,0.4693784]
[1728385219389,0.200973,62536.0,62535.0,0.3894034]
[1728385219591,0.200973,62536.0,62523.0,0.079989]
[1728385219592,0.079989,62524.0,62523.0,0.079989]
[1728385220299,0.079989,62524.0,62523.0,0.10949139]
[1728385220707,0.081989,62524.0,62523.0,0.10949139]
[1728385221700,0.081989,62524.0,62523.0,0.13979139]
[1728385221905,0.081989,62524.0,62523.0,0.25979139]
[1728385222502,0.080989,62524.0,62523.0,0.25979139]
[1728385222799,0.081989,62524.0,62523.0,0.25979139]
[1728385223900,0.081989,62524.0,62523.0,0.0303]
[1728385224301,0.201989,62524.0,62523.0,0.0303]
[1728385226414,0.200989,62524.0,62523.0,0.0303]
[1728385226712,0.201989,62524.0,62523.0,0.0303]
[1728385229302,0.07999,62523.0,62522.0,0.02888357]
[1728385229506,0.079994,62520.0,62519.0,0.142195]
[1728385229708,0.199994,62520.0,62519.0,0.142195]
[1728385229915,0.079994,62520.0,62519.0,0.41255244]
[1728385230112,0.199994,62520.0,62519.0,0.44164599]
[1728385230817,0.200994,62520.0,62519.0,0.44164599]
[1728385231105,0.200994,62520.0,62519.0,0.44164719]
[1728385231500,0.200994,62520.0,62519.0,0.41004719]
[1728385231707,0.200994,62520.0,62519.0,0.29945219]
[1728385231907,0.200994,62520.0,62519.0,0.15103216]
[1728385232106,0.201994,62520.0,62519.0,0.15103216]
[1728385232308,0.201994,62520.0,62519.0,0.12193861]
[1728385232607,0.201994,62520.0,62519.0,0.12194321]
[1728385232810,0.201994,62520.0,62519.0,0.20193821]
[1728385233010,0.081994,62520.0,62519.0,0.47036236]
[1728385233212,0.002,62520.0,62519.0,0.47036236]
[1728385233422,0.3608,62529.0,62519.0,0.56525014]
[1728385233708,0.00239927,62537.0,62533.0,0.079973]
[1728385233917,0.00239927,62537.0,62536.0,0.079973]
[1728385234221,0.00239927,62537.0,62536.0,0.63666034]
[1728385234403,0.00239927,62537.0,62536.0,0.3503317]
[1728385235807,0.00339927,62537.0,62536.0,0.37854423]
[1728385236111,0.00439927,62537.0,62536.0,0.37854423]
[1728385236313,0.00339927,62537.0,62536.0,0.37854423]
[1728385236509,0.00439927,62537.0,62536.0,0.37954423]
[1728385236708,0.00439927,62537.0,62536.0,0.26262874]
[1728385236905,0.00439927,62537.0,62536.0,0.14068553]
[1728385239329,0.3608,62544.0,62543.0,0.079964]
[1728385239615,0.3608,62544.0,62543.0,0.199964]
[1728385240412,0.079961,62546.0,62543.0,0.12]
[1728385240609,0.079961,62546.0,62545.0,0.079962]
[1728385241410,0.079961,62546.0,62543.0,0.12]
[1728385241411,0.3608,62551.0,62543.0,0.12]
[1728385241612,0.3608,62551.0,62550.0,0.199956]
[1728385241807,0.079953,62552.0,62551.0,0.079954]
[1728385242011,0.079953,62552.0,62551.0,0.199954]
[1728385244115,0.199953,62552.0,62551.0,0.079954]
[1728385244325,0.213953,62552.0,62551.0,0.079954]
[1728385245022,0.213953,62552.0,62551.0,0.12872558]
[1728385245023,0.227953,62552.0,62551.0,0.12872558]
[1728385245821,0.147,62552.0,62551.0,0.12872558]
[1728385246419,0.147,62552.0,62551.0,0.080954]
[1728385246819,0.226953,62552.0,62551.0,0.080954]
[1728385248223,0.587753,62552.0,62551.0,0.080954]
[1728385248723,0.5078,62552.0,62551.0,0.080954]
[1728385249416,0.3878,62552.0,62551.0,0.080954]
[1728385250226,0.027,62552.0,62551.0,0.080954]
[1728385253421,0.106953,62552.0,62551.0,0.080954]
[1728385255116,0.226953,62552.0,62551.0,0.001]
[1728385255326,0.079966,62542.0,62541.0,0.10920802]
[1728385255630,0.199966,62542.0,62541.0,0.079964]
[1728385256430,0.079966,62542.0,62541.0,0.079964]
[1728385256931,0.080966,62542.0,62541.0,0.082964]
[1728385258035,0.080966,62542.0,62541.0,0.089964]
[1728385258335,0.081966,62542.0,62541.0,0.089964]
[1728385259637,0.442766,62542.0,62541.0,0.01]
[1728385260430,0.442766,62542.0,62528.0,0.3252]
[1728385260431,1.44248,62542.0,62528.0,0.3252]
[1728385260635,1.44248,62542.0,62530.0,0.11127107]
[1728385260636,0.07998,62531.0,62530.0,0.11127107]
[1728385261631,0.07998,62531.0,62530.0,0.11827107]
[1728385262443,0.08098,62531.0,62530.0,0.11827107]
[1728385263032,0.08198,62531.0,62530.0,0.11827107]
[1728385264235,0.08198,62531.0,62530.0,0.11127107]
[1728385268851,0.08198,62531.0,62530.0,0.00239872]
[1728385270440,0.08198,62531.0,62530.0,0.08237972]
[1728385274951,0.08198,62531.0,62530.0,0.1301631]
[1728385274952,0.04195221,62531.0,62530.0,0.1301631]
[1728385276244,0.04195221,62531.0,62530.0,0.00239872]
[1728385277150,0.04195221,62531.0,62530.0,0.08237972]
[1728385277350,0.04195221,62531.0,62530.0,0.1301631]
[1728385278050,0.04195221,62531.0,62530.0,0.08237972]
[1728385278550,0.16195221,62531.0,62530.0,0.08237972]
[1728385281051,0.04195221,62531.0,62530.0,0.08237972]
[1728385281252,0.002,62531.0,62530.0,0.28395968]
[1728385281443,0.002,62531.0,62530.0,0.29989156]
[1728385281644,0.002,62531.0,62530.0,0.20430026]
[1728385282151,0.3608,62532.0,62531.0,0.07998]
[1728385284059,0.3618,62532.0,62531.0,0.08198]
[1728385284249,0.3628,62532.0,62531.0,0.08198]
[1728385285948,0.002,62532.0,62531.0,0.08198]
[1728385286553,0.002,62532.0,62531.0,0.2837816]
[1728385286846,0.002,62532.0,62531.0,0.20389551]
[1728385287053,0.002,62532.0,62531.0,0.28378215]
[1728385287249,0.081979,62532.0,62531.0,0.08198]
[1728385288258,0.002,62532.0,62531.0,0.08198]
[1728385290144,0.00088,62534.0,62533.0,0.079977]
[1728385290354,0.3608,62550.0,62539.0,0.079969]
[1728385290549,0.440757,62550.0,62549.0,0.079957]
[1728385290751,0.560757,62550.0,62549.0,0.079957]
[1728385292350,0.574757,62550.0,62549.0,0.079957]
[1728385293263,0.588757,62550.0,62549.0,0.079957]
[1728385293864,0.3888,62550.0,62549.0,0.199957]
[1728385294756,0.028,62550.0,62549.0,0.199957]
[1728385296475,0.028,62550.0,62549.0,0.259957]
[1728385298257,0.028,62550.0,62549.0,0.28937992]
[1728385299256,0.3608,62565.0,62549.0,0.28937992]
[1728385299257,0.079936,62566.0,62565.0,0.079936]
[1728385300664,0.093936,62566.0,62565.0,0.079936]
[1728385300860,0.107936,62566.0,62565.0,0.079936]
[1728385301862,0.028,62566.0,62565.0,0.079936]
[1728385306364,0.028,62566.0,62565.0,0.28935402]
[1728385306577,0.079883,62607.0,62578.0,0.07992]
[1728385306578,0.079916,62581.0,62578.0,0.07992]
[1728385306761,0.3608,62586.0,62578.0,0.07992]
[1728385306762,0.079914,62583.0,62578.0,0.07992]
[1728385306960,0.079915,62582.0,62578.0,0.07992]
[1728385307364,0.079915,62583.0,62578.0,0.10875911]
[1728385307867,0.079912,62584.0,62578.0,0.08092]
[1728385308069,0.079914,62583.0,62578.0,0.08092]
[1728385308275,0.079917,62580.0,62578.0,0.08092]
[1728385309377,0.00231771,62579.0,62578.0,0.08092]
[1728385309878,0.00231771,62579.0,62578.0,0.08192]
[1728385313780,0.079917,62580.0,62579.0,0.079918]
[1728385314781,0.3608,62581.0,62580.0,0.079917]
[1728385315379,0.440716,62581.0,62580.0,0.079917]
[1728385316083,0.3608,62581.0,62580.0,0.079917]
[1728385316575,0.3608,62581.0,62580.0,0.080917]
[1728385316976,0.3608,62581.0,62580.0,0.081917]
[1728385318080,0.440716,62581.0,62580.0,0.081917]
[1728385318285,0.3608,62581.0,62580.0,0.081917]
[1728385325376,0.079914,62583.0,62582.0,0.079915]
[1728385326785,0.079914,62583.0,62582.0,0.080915]
[1728385326986,0.079914,62583.0,62582.0,0.081915]
[1728385330403,0.079914,62583.0,62582.0,0.002]
[1728385332993,0.079914,62583.0,62570.0,0.3608]
[1728385332994,1.07936,62583.0,62570.0,0.3608]
[1728385333198,0.259929,62571.0,62570.0,0.44073]
[1728385334016,0.259929,62571.0,62570.0,0.08093]
[1728385334196,0.259929,62571.0,62570.0,0.002]
[1728385335791,0.259929,62571.0,62570.0,0.001]
[1728385335996,1.36768285,62571.0,62570.0,0.002]
[1728385337400,1.36768285,62571.0,62570.0,0.001]
[1728385337599,1.36768285,62571.0,62570.0,0.002]
[1728385339310,1.28775385,62571.0,62554.0,0.3934]
[1728385339500,0.259949,62556.0,62555.0,0.079948]
[1728385340602,0.3608,62559.0,62555.0,0.093948]
[1728385340803,0.3608,62559.0,62558.0,0.079945]
[1728385342705,0.3608,62559.0,62558.0,0.259945]
[1728385342904,0.07994,62563.0,62562.0,0.07994]
[1728385344308,0.07994,62563.0,62562.0,0.09394]
[1728385345104,0.07994,62563.0,62562.0,0.10794]
[1728385346110,0.079938,62566.0,62565.0,0.079934]
[1728385347306,0.079938,62566.0,62565.0,0.080934]
[1728385348715,0.079938,62566.0,62565.0,0.081934]
[1728385352412,0.199938,62566.0,62565.0,0.081934]
[1728385355410,0.560738,62566.0,62565.0,0.081934]
[1728385356620,0.079938,62566.0,62565.0,0.081934]
[1728385356915,0.16226389,62569.0,62568.0,0.079933]
[1728385358713,0.16226389,62569.0,62568.0,0.080933]
[1728385359213,0.08232989,62569.0,62568.0,0.081933]
[1728385361812,0.00239789,62569.0,62568.0,0.442733]
[1728385362410,0.440721,62578.0,62577.0,0.079921]
[1728385364121,0.440721,62578.0,62577.0,0.080921]
[1728385364721,0.440721,62578.0,62577.0,0.081921]
[1728385368614,0.440721,62578.0,62577.0,0.002]
[1728385369623,0.079921,62578.0,62577.0,0.002]
[1728385369824,0.440721,62578.0,62577.0,0.002]
[1728385370623,0.440721,62578.0,62577.0,0.081921]
[1728385371717,0.079921,62578.0,62577.0,0.081921]
[1728385375228,0.079921,62578.0,62577.0,0.002]
[1728385375823,0.079921,62578.0,62577.0,0.081921]
[1728385377133,0.440703,62592.0,62577.0,0.081921]
[1728385377434,0.079917,62581.0,62580.0,0.079913]
[1728385378321,0.079917,62581.0,62580.0,0.199913]
[1728385379037,0.079917,62581.0,62580.0,0.200913]
[1728385379231,0.079917,62581.0,62580.0,0.201913]
[1728385381436,0.079917,62581.0,62580.0,0.081913]
[1728385382541,0.199917,62581.0,62580.0,0.002]
[1728385384531,0.22909747,62581.0,62580.0,0.002]
[1728385384830,0.58989747,62581.0,62580.0,0.002]
[1728385392632,0.079935,62566.0,62565.0,0.032]
[1728385392940,0.079936,62565.0,62560.0,0.0311]
[1728385393130,0.079936,62565.0,62559.0,0.0318]
[1728385393325,0.079936,62565.0,62557.0,0.032]
[1728385393531,0.079945,62558.0,62557.0,0.032]
[1728385393740,0.079947,62557.0,62556.0,0.02946651]
[1728385393934,0.4816,62558.0,62550.0,0.111955]
[1728385394132,0.079954,62551.0,62550.0,0.111955]
[1728385395537,0.079954,62551.0,62550.0,0.125955]
[1728385396227,0.079954,62551.0,62550.0,0.139955]
[1728385397834,0.079954,62551.0,62550.0,0.06]
[1728385398037,0.079954,62551.0,62550.0,0.028]
[1728385408850,0.079954,62551.0,62550.0,0.148]
[1728385409065,0.079954,62551.0,62550.0,0.227956]
[1728385410739,0.3608,62557.0,62550.0,0.227956]
[1728385410945,0.079948,62556.0,62555.0,0.079948]
[1728385412648,0.079948,62556.0,62555.0,0.107948]
[1728385416948,0.259948,62556.0,62555.0,0.107948]
[1728385417242,0.259948,62556.0,62543.0,0.18]
[1728385417243,0.079964,62544.0,62541.0,0.079966]
[1728385417449,0.079964,62544.0,62543.0,0.07996]
[1728385419057,0.079964,62544.0,62543.0,0.09396]
[1728385420257,0.080964,62544.0,62543.0,0.10796]
[1728385420446,0.001,62544.0,62543.0,0.10796]
[1728385425450,0.001,62544.0,62543.0,0.14016]
[1728385436867,0.080963,62544.0,62543.0,0.14016]
[1728385437269,0.001,62544.0,62543.0,0.14016]
[1728385438164,0.080963,62544.0,62543.0,0.14016]
[1728385440768,0.080963,62544.0,62543.0,0.20404473]
[1728385440965,0.080963,62544.0,62543.0,0.20404492]
[1728385441275,0.001,62544.0,62543.0,0.14016]
[1728385441573,0.12217545,62609.0,62543.0,0.18207245]
[1728385441574,0.3608,62566.0,62543.0,0.18207245]
[1728385441764,0.07995,62557.0,62556.0,0.079945]
[1728385442072,0.07995,62557.0,62556.0,0.24784651]
[1728385442375,0.07995,62557.0,62556.0,0.199945]
[1728385443070,0.07995,62557.0,62556.0,0.212945]
[1728385443272,0.08095,62557.0,62556.0,0.212945]
[1728385443467,0.08095,62557.0,62556.0,0.26082637]
[1728385443670,0.08195,62557.0,62556.0,0.15482637]
[1728385443873,0.08195,62557.0,62556.0,0.106945]
[1728385444672,0.08195,62557.0,62556.0,0.027]
[1728385445470,0.08195,62557.0,62556.0,0.07488137]
[1728385446365,0.08195,62557.0,62556.0,0.027]
[1728385446769,0.08195,62557.0,62556.0,0.07488137]
[1728385447074,0.08195,62557.0,62556.0,0.027]
[1728385448978,0.11385,62557.0,62556.0,0.027]
[1728385449477,0.11385,62557.0,62544.0,0.079962]
[1728385449478,0.079962,62545.0,62544.0,0.079962]
[1728385449671,0.199962,62545.0,62544.0,0.079962]
[1728385450479,0.079962,62545.0,62544.0,0.079962]
[1728385450679,0.080962,62545.0,62544.0,0.093962]
[1728385451776,0.081962,62545.0,62544.0,0.015]
[1728385452173,0.081962,62545.0,62544.0,0.094963]
[1728385466102,0.002,62545.0,62544.0,0.274963]
[1728385466395,0.002,62545.0,62544.0,0.635763]
[1728385469403,0.002,62545.0,62544.0,0.455763]
[1728385474105,0.081962,62545.0,62544.0,0.455763]
[1728385477507,0.081962,62545.0,62544.0,0.094963]
[1728385484114,0.002,62545.0,62544.0,0.214963]
[1728385485821,0.002,62545.0,62544.0,0.575763]
[1728385489722,0.002,62545.0,62544.0,0.65559885]
[1728385489920,0.002,62545.0,62544.0,0.77747734]
[1728385490121,0.002,62545.0,62544.0,0.69764149]
[1728385491725,0.002,62545.0,62544.0,0.77758414]
[1728385491926,0.002,62545.0,62544.0,0.77758405]
[1728385492129,0.002,62545.0,62544.0,0.575763]
[1728385499133,0.110738,62564.0,62544.0,1.57544]
[1728385499134,0.079947,62557.0,62544.0,1.57544]
[1728385499437,0.079947,62557.0,62556.0,0.12]
[1728385499934,0.079947,62557.0,62556.0,0.199947]
[1728385501021,0.080947,62557.0,62556.0,0.199947]
[1728385501338,0.002,62557.0,62556.0,0.199947]
[1728385501528,0.002,62557.0,62556.0,0.201947]
[1728385502037,0.001,62557.0,62556.0,0.201947]
[1728385502223,0.081947,62557.0,62556.0,0.204947]
[1728385504140,0.081947,62557.0,62556.0,0.2342344]
[1728385505332,0.081947,62557.0,62556.0,0.1142344]
[1728385505531,0.201947,62557.0,62556.0,0.084947]
[1728385505729,0.201947,62557.0,62556.0,0.005]
[1728385506440,0.079959,62547.0,62546.0,0.07996]
[1728385506644,0.199959,62547.0,62546.0,0.07996]
[1728385507737,0.200959,62547.0,62546.0,0.08196]
[1728385507934,0.201959,62547.0,62546.0,0.08196]
[1728385509133,0.201959,62547.0,62546.0,0.002]
[1728385510738,0.23063313,62547.0,62546.0,0.002]
[1728385511243,0.22963313,62547.0,62546.0,0.002]
[1728385511442,0.23063313,62547.0,62546.0,0.002]
[1728385511646,0.079964,62543.0,62542.0,0.00239848]
[1728385511945,0.199964,62543.0,62542.0,0.00239848]
[1728385513640,0.200964,62543.0,62542.0,0.00239848]
[1728385513835,0.201964,62543.0,62542.0,0.00239848]
[1728385514035,0.079966,62542.0,62541.0,0.079967]
[1728385515435,0.080966,62542.0,62541.0,0.079967]
[1728385515642,0.081966,62542.0,62541.0,0.079967]
[1728385518739,0.081966,62542.0,62535.0,0.1487087]
[1728385518945,0.199973,62536.0,62535.0,0.1086817]
[1728385520943,0.200973,62536.0,62535.0,0.1086817]
[1728385521342,0.080973,62536.0,62535.0,0.1086817]
[1728385522450,0.081973,62536.0,62535.0,0.1086817]
[1728385527649,0.002,62536.0,62535.0,0.1086817]
[1728385532452,0.081973,62536.0,62535.0,0.1086817]
[1728385532960,0.079981,62533.0,62525.0,0.079986]
[1728385533253,0.199981,62530.0,62529.0,0.11297988]
[1728385534252,0.199981,62530.0,62529.0,0.03134432]
[1728385534458,0.199981,62530.0,62529.0,0.00239888]
[1728385534856,0.201981,62530.0,62529.0,0.00239888]
[1728385535161,0.562781,62530.0,62529.0,0.00239888]
[1728385546453,0.201981,62530.0,62529.0,0.00239888]
[1728385546669,0.562781,62530.0,62529.0,0.00239888]
[1728385551370,0.562781,62530.0,62529.0,0.08238088]
[1728385552260,0.3628,62530.0,62529.0,0.20238088]
[1728385552461,0.002,62530.0,62529.0,0.20238088]
[1728385552759,0.081981,62530.0,62529.0,0.08238088]
[1728385553666,0.201981,62530.0,62529.0,0.08238088]
[1728385554557,0.201981,62530.0,62529.0,0.13034613]
[1728385554761,0.201981,62530.0,62529.0,0.08238088]
[1728385556465,0.201981,62530.0,62529.0,0.00239888]
[1728385557758,0.562781,62530.0,62529.0,0.00239888]
[1728385566465,0.562781,62530.0,62529.0,0.08238088]
[1728385566662,0.081981,62530.0,62529.0,0.08238088]
[1728385567875,0.002,62530.0,62529.0,0.20238088]
[1728385568183,0.3608,62544.0,62529.0,1.28214088]
[1728385568184,0.079968,62541.0,62529.0,1.28214088]
[1728385568475,0.440772,62538.0,62537.0,0.199972]
[1728385568680,0.3608,62538.0,62537.0,0.199972]
[1728385569179,0.3608,62538.0,62537.0,0.079972]
[1728385569476,0.12,62539.0,62538.0,0.079971]
[1728385569672,0.079969,62540.0,62539.0,0.07997]
[1728385572265,0.080969,62540.0,62539.0,0.08197]
[1728385572780,0.081969,62540.0,62539.0,0.08397]
[1728385573982,0.002,62540.0,62539.0,0.20397]
[1728385576977,0.00084,62544.0,62543.0,0.079964]
[1728385577283,0.079959,62548.0,62543.0,0.079964]
[1728385577284,0.079959,62547.0,62546.0,0.079959]
[1728385578980,0.093959,62547.0,62546.0,0.079959]
[1728385579174,0.107959,62547.0,62546.0,0.079959]
[1728385579487,0.101959,62547.0,62546.0,0.079959]
[1728385580581,0.095959,62547.0,62546.0,0.079959]
[1728385581479,0.095959,62547.0,62546.0,0.10901785]
[1728385587490,0.016,62547.0,62546.0,0.10901785]
[1728385588291,0.095959,62547.0,62546.0,0.079959]
[1728385594513,0.016,62547.0,62546.0,0.079959]
[1728385594909,0.016,62547.0,62546.0,0.145159]
[1728385598310,0.016,62547.0,62546.0,0.505959]
[1728385601109,0.016,62547.0,62546.0,0.440759]
[1728385603314,0.095959,62547.0,62546.0,0.079959]
[1728385606310,0.016,62547.0,62546.0,0.079959]
[1728385611117,0.095959,62547.0,62546.0,0.079959]
[1728385612318,0.016,62547.0,62546.0,0.079959]
[1728385612727,0.016,62547.0,62546.0,0.440759]
[1728385617223,0.016,62547.0,62546.0,0.560759]
[1728385619928,0.016,62547.0,62546.0,0.199959]
[1728385621738,0.00239831,62555.0,62554.0,0.07995]
[1728385622034,0.00239831,62555.0,62554.0,0.44075]
[1728385622035,1e-08,62555.0,62554.0,0.44075]
[1728385623332,0.01400001,62555.0,62554.0,0.44075]
[1728385623734,0.079923,62576.0,62572.0,0.079927]
[1728385623924,0.145622,62577.0,62576.0,0.079922]
[1728385624128,0.145622,62577.0,62576.0,0.199922]
[1728385624732,0.1525,62583.0,62576.0,0.12]
[1728385625043,0.1525,62583.0,62579.0,0.079918]
[1728385625044,0.079918,62580.0,62579.0,0.079918]
[1728385625231,0.199918,62580.0,62579.0,0.079918]
[1728385626535,0.204918,62580.0,62579.0,0.080918]
[1728385627035,0.199918,62580.0,62579.0,0.079918]
[1728385627240,0.218918,62580.0,62579.0,0.081918]
[1728385629445,0.459718,62580.0,62579.0,0.081918]
[1728385629744,0.579718,62580.0,62579.0,0.081918]
[1728385634045,0.218918,62580.0,62579.0,0.081918]